fUSD/lending_fUSD_20241209
["ID","MTS","AMOUNT","RATE_DAILY","PERIOD"]
[344688846,1733722282206,-532.13,9.863e-05,2]
[344688847,1733722282244,-1481.61,9.863e-05,2]
[344688848,1733722282283,-500.0,9.863e-05,2]
[344688849,1733722282321,-1519.38,9.863e-05,2]
[344688850,1733722282358,-541.82,9.863e-05,2]
[344688851,1733722282396,-500.0,9.863e-05,2]
[344688852,1733722282441,-1481.61,9.863e-05,2]
[344688853,1733722282483,-532.13,9.863e-05,2]
[344688854,1733722282522,-500.0,9.863e-05,2]
[344688855,1733722282561,-1519.38,9.863e-05,2]
[344688856,1733722282597,-541.82,9.863e-05,2]
[344688857,1733722282635,-532.13,9.863e-05,2]
[344688858,1733722282673,-500.0,9.863e-05,2]
[344688859,1733722282711,-1481.7673946,9.863e-05,2]
[344688860,1733722282750,-1519.38,9.863e-05,2]
[344688861,1733722282787,-347.34801575,9.863e-05,2]
[344688862,1733722282825,-532.13,9.863e-05,2]
[344688863,1733722282863,-1519.38,9.863e-05,2]
[344688864,1733722282901,-541.82,9.863e-05,2]
[344688865,1733722282939,-180.46285195,9.863e-05,2]
[344688866,1733722282974,-1519.38,9.863e-05,2]
[344688867,1733722283011,-532.13,9.863e-05,2]
[344688868,1733722283048,-541.82,9.863e-05,2]
[344688869,1733722283086,-532.13,9.863e-05,2]
[344688870,1733722283124,-1519.38,9.863e-05,2]
[344688871,1733722283161,-541.82,9.863e-05,2]
[344688872,1733722283198,-532.13,9.863e-05,2]
[344688873,1733722283235,-1519.38,9.863e-05,2]
[344688874,1733722283270,-541.82,9.863e-05,2]
[344688875,1733722283306,-532.13,9.863e-05,2]
[344688876,1733722283341,-1519.38,9.863e-05,2]
[344688877,1733722283375,-500.0,9.863e-05,2]
[344688878,1733722283410,-541.82,9.863e-05,2]
[344688879,1733722283446,-1519.38,9.863e-05,2]
[344688880,1733722283482,-532.13,9.863e-05,2]
[344688881,1733722283520,-500.0,9.863e-05,2]
[344688882,1733722283557,-541.82,9.863e-05,2]
[344688883,1733722283594,-500.0,9.863e-05,2]
[344688884,1733722283633,-1519.38,9.863e-05,2]
[344688885,1733722283673,-541.82,9.863e-05,2]
[344688886,1733722283710,-532.13,9.863e-05,2]
[344688887,1733722283826,-500.0,9.863e-05,2]
[344688888,1733722283862,-500.0,9.863e-05,2]
[344688889,1733722283899,-222.22,9.863e-05,2]
[344688890,1733722283935,-1519.38,9.863e-05,2]
[344688891,1733722283972,-532.13,9.863e-05,2]
[344688892,1733722284010,-541.82,9.863e-05,2]
[344688893,1733722284047,-874.67,9.863e-05,2]
[344688894,1733722284083,-500.0,9.863e-05,2]
[344688895,1733722284119,-532.13,9.863e-05,2]
[344688896,1733722284156,-1519.38,9.863e-05,2]
[344688897,1733722284195,-541.82,9.863e-05,2]
[344688898,1733722284231,-874.67,9.863e-05,2]
[344688899,1733722284268,-500.0,9.863e-05,2]
[344688900,1733722284304,-532.13,9.863e-05,2]
[344688901,1733722284343,-1519.38,9.863e-05,2]
[344688902,1733722284379,-541.82,9.863e-05,2]
[344688903,1733722284418,-500.0,9.863e-05,2]
[344688904,1733722284457,-874.67,9.863e-05,2]
[344688905,1733722284495,-1519.38,9.863e-05,2]
[344688906,1733722284534,-541.82,9.863e-05,2]
[344688907,1733722284574,-874.67,9.863e-05,2]
[344688908,1733722284612,-500.0,9.863e-05,2]
[344688909,1733722284649,-1519.38,9.863e-05,2]
[344688910,1733722284686,-541.82,9.863e-05,2]
[344688911,1733722284724,-874.67,9.863e-05,2]
[344688912,1733722284762,-500.0,9.863e-05,2]
[344688913,1733722284799,-1519.38,9.863e-05,2]
[344688914,1733722284836,-874.67,9.863e-05,2]
[344688915,1733722284874,-542.01580425,9.863e-05,2]
[344688916,1733722284918,-500.0,9.863e-05,2]
[344688917,1733722284961,-874.67,9.863e-05,2]
[344688918,1733722285000,-1519.38,9.863e-05,2]
[344688919,1733722285041,-500.0,9.863e-05,2]
[344688920,1733722285078,-617.46,9.863e-05,2]
[344688921,1733722285115,-874.67,9.863e-05,2]
[344688922,1733722285156,-1519.38,9.863e-05,2]
[344688923,1733722285193,-500.0,9.863e-05,2]
[344688924,1733722285231,-617.46,9.863e-05,2]
[344688925,1733722285267,-1519.38,9.863e-05,2]
[344688926,1733722285304,-874.67,9.863e-05,2]
[344688927,1733722285343,-500.0,9.863e-05,2]
[344688928,1733722285380,-617.46,9.863e-05,2]
[344688929,1733722285418,-1519.38,9.863e-05,2]
[344688930,1733722285455,-874.67,9.863e-05,2]
[344688931,1733722285490,-500.0,9.863e-05,2]
[344688932,1733722285529,-617.46,9.863e-05,2]
[344688933,1733722285565,-1519.56683276,9.863e-05,2]
[344688934,1733722285602,-874.67,9.863e-05,2]
[344688935,1733722285638,-574.23,9.863e-05,2]
[344688936,1733722285675,-500.0,9.863e-05,2]
[344688937,1733722285714,-874.67,9.863e-05,2]
[344688938,1733722285749,-574.23,9.863e-05,2]
[344688939,1733722285786,-500.0,9.863e-05,2]
[344688940,1733722285822,-500.58279146,9.863e-05,2]
[344688941,1733722285858,-617.46,9.863e-05,2]
[344688942,1733722285895,-986.32,9.863e-05,2]
[344688943,1733722285934,-874.67,9.863e-05,2]
[344688944,1733722285973,-574.23,9.863e-05,2]
[344688945,1733722286010,-500.0,9.863e-05,2]
[344688946,1733722286048,-617.46,9.863e-05,2]
[344688947,1733722286086,-874.67,9.863e-05,2]
[344688948,1733722286125,-574.23,9.863e-05,2]
[344688949,1733722286163,-617.46,9.863e-05,2]
[344688950,1733722286200,-2524.62,9.863e-05,2]
[344688951,1733722286237,-986.32,9.863e-05,2]
[344688952,1733722286273,-874.67,9.863e-05,2]
[344688953,1733722286309,-574.23,9.863e-05,2]
[344688954,1733722286346,-617.46,9.863e-05,2]
[344688955,1733722286380,-986.32,9.863e-05,2]
[344688956,1733722286420,-2524.62,9.863e-05,2]
[344688957,1733722286458,-874.67,9.863e-05,2]
[344688958,1733722286494,-574.23,9.863e-05,2]
[344688959,1733722286533,-552.03,9.863e-05,2]
[344688960,1733722286569,-986.32,9.863e-05,2]
[344688961,1733722286603,-2524.62,9.863e-05,2]
[344688962,1733722286642,-874.67,9.863e-05,2]
[344688963,1733722286679,-574.23,9.863e-05,2]
[344688964,1733722286715,-1614.62,9.863e-05,2]
[344688965,1733722286752,-617.46,9.863e-05,2]
[344688966,1733722286788,-552.03,9.863e-05,2]
[344688967,1733722286824,-986.32,9.863e-05,2]
[344688968,1733722286859,-2524.62,9.863e-05,2]
[344688969,1733722286896,-874.67,9.863e-05,2]
[344688970,1733722286934,-574.23,9.863e-05,2]
[344688971,1733722286970,-617.46,9.863e-05,2]
[344688972,1733722287005,-552.03,9.863e-05,2]
[344688973,1733722287042,-1614.62,9.863e-05,2]
[344688974,1733722287078,-874.67,9.863e-05,2]
[344688975,1733722287116,-2524.62,9.863e-05,2]
[344688976,1733722287153,-986.32,9.863e-05,2]
[344688977,1733722287191,-617.46,9.863e-05,2]
[344688978,1733722287228,-574.23,9.863e-05,2]
[344688979,1733722287266,-552.03,9.863e-05,2]
[344688980,1733722287302,-1614.62,9.863e-05,2]
[344688981,1733722287339,-1410.23,9.863e-05,2]
[344688982,1733722287376,-874.67,9.863e-05,2]
[344688983,1733722287413,-986.32,9.863e-05,2]
[344688984,1733722287451,-617.46,9.863e-05,2]
[344688985,1733722287493,-552.03,9.863e-05,2]
[344688986,1733722287535,-1614.62,9.863e-05,2]
[344688987,1733722287574,-1410.23,9.863e-05,2]
[344688988,1733722287614,-874.67,9.863e-05,2]
[344688989,1733722287655,-986.32,9.863e-05,2]
[344688990,1733722287696,-617.46,9.863e-05,2]
[344688991,1733722287735,-574.23,9.863e-05,2]
[344688992,1733722287775,-552.03,9.863e-05,2]
[344688993,1733722287815,-1614.62,9.863e-05,2]
[344688994,1733722287853,-874.67,9.863e-05,2]
[344688995,1733722287900,-1410.23,9.863e-05,2]
[344688996,1733722287942,-2524.62,9.863e-05,2]
[344688997,1733722287983,-986.32,9.863e-05,2]
[344688998,1733722288024,-574.23,9.863e-05,2]
[344688999,1733722288064,-552.03,9.863e-05,2]
[344689000,1733722288103,-617.46,9.863e-05,2]
[344689001,1733722288145,-1614.62,9.863e-05,2]
[344689002,1733722288184,-874.67,9.863e-05,2]
[344689003,1733722288223,-986.32,9.863e-05,2]
[344689004,1733722288261,-552.03,9.863e-05,2]
[344689005,1733722288299,-1410.23,9.863e-05,2]
[344689006,1733722288337,-617.46,9.863e-05,2]
[344689007,1733722288377,-574.23,9.863e-05,2]
[344689008,1733722288416,-2524.62,9.863e-05,2]
[344689009,1733722288456,-1614.62,9.863e-05,2]
[344689010,1733722288495,-874.81780414,9.863e-05,2]
[344689011,1733722288535,-986.32,9.863e-05,2]
[344689012,1733722288575,-617.46,9.863e-05,2]
[344689013,1733722288614,-574.23,9.863e-05,2]
[344689014,1733722288653,-552.03,9.863e-05,2]
[344689015,1733722288690,-1410.23,9.863e-05,2]
[344689016,1733722288728,-2524.62,9.863e-05,2]
[344689017,1733722288766,-1614.62,9.863e-05,2]
[344689018,1733722288808,-986.32,9.863e-05,2]
[344689019,1733722288847,-552.03,9.863e-05,2]
[344689020,1733722288884,-1410.23,9.863e-05,2]
[344689021,1733722288926,-574.23,9.863e-05,2]
[344689022,1733722288965,-2524.62,9.863e-05,2]
[344689023,1733722289003,-1614.62,9.863e-05,2]
[344689024,1733722289045,-617.46,9.863e-05,2]
[344689025,1733722289081,-500.0,9.863e-05,2]
[344689026,1733722289121,-986.32,9.863e-05,2]
[344689027,1733722289159,-552.03,9.863e-05,2]
[344689028,1733722289198,-574.23,9.863e-05,2]
[344689029,1733722289237,-2524.62,9.863e-05,2]
[344689030,1733722289276,-617.46,9.863e-05,2]
[344689031,1733722289313,-1410.23,9.863e-05,2]
[344689032,1733722289353,-1614.62,9.863e-05,2]
[344689033,1733722289391,-500.0,9.863e-05,2]
[344689034,1733722289435,-986.32,9.863e-05,2]
[344689035,1733722289476,-552.03,9.863e-05,2]
[344689036,1733722289517,-574.23,9.863e-05,2]
[344689037,1733722289559,-2524.62,9.863e-05,2]
[344689038,1733722289598,-617.46,9.863e-05,2]
[344689039,1733722289637,-1410.23,9.863e-05,2]
[344689040,1733722289679,-1614.62,9.863e-05,2]
[344689041,1733722289720,-500.0,9.863e-05,2]
[344689042,1733722289758,-550.85,9.863e-05,2]
[344689043,1733722289798,-986.32,9.863e-05,2]
[344689044,1733722289837,-552.03,9.863e-05,2]
[344689045,1733722289875,-2524.62,9.863e-05,2]
[344689046,1733722289913,-1410.23,9.863e-05,2]
[344689047,1733722289952,-1614.62,9.863e-05,2]
[344689048,1733722289989,-500.0,9.863e-05,2]
[344689049,1733722290028,-550.85,9.863e-05,2]
[344689050,1733722290067,-617.46,9.863e-05,2]
[344689051,1733722290105,-986.32,9.863e-05,2]
[344689052,1733722290146,-552.03,9.863e-05,2]
[344689053,1733722290185,-2524.62,9.863e-05,2]
[344689054,1733722290223,-574.23,9.863e-05,2]
[344689055,1733722290284,-500.0,9.863e-05,2]
[344689056,1733722290326,-550.85,9.863e-05,2]
[344689057,1733722290366,-617.46,9.863e-05,2]
[344689058,1733722290408,-986.32,9.863e-05,2]
[344689059,1733722290457,-552.03,9.863e-05,2]
[344689060,1733722290498,-2524.62,9.863e-05,2]
[344689061,1733722290541,-574.23,9.863e-05,2]
[344689062,1733722290589,-1614.62,9.863e-05,2]
[344689063,1733722290630,-617.46,9.863e-05,2]
[344689064,1733722290669,-500.0,9.863e-05,2]
[344689065,1733722290713,-986.32,9.863e-05,2]
[344689066,1733722290754,-552.03,9.863e-05,2]
[344689067,1733722290794,-2524.62,9.863e-05,2]
[344689068,1733722290833,-1614.62,9.863e-05,2]
[344689069,1733722290871,-550.85,9.863e-05,2]
[344689070,1733722290912,-617.46,9.863e-05,2]
[344689071,1733722290952,-986.32,9.863e-05,2]
[344689072,1733722290992,-500.0,9.863e-05,2]
[344689073,1733722291032,-1614.62,9.863e-05,2]
[344689074,1733722291073,-2524.62,9.863e-05,2]
[344689075,1733722291116,-552.03,9.863e-05,2]
[344689076,1733722291160,-986.32,9.863e-05,2]
[344689077,1733722291203,-550.85,9.863e-05,2]
[344689078,1733722291247,-617.63095072,9.863e-05,2]
[344689079,1733722291289,-500.0,9.863e-05,2]
[344689080,1733722291333,-1614.62,9.863e-05,2]
[344689081,1733722291374,-2524.62,9.863e-05,2]
[344689082,1733722291415,-1068.27,9.863e-05,2]
[344689083,1733722291456,-552.03,9.863e-05,2]
[344689084,1733722291497,-986.32,9.863e-05,2]
[344689085,1733722291540,-500.0,9.863e-05,2]
[344689086,1733722291579,-500.0,9.863e-05,2]
[344689087,1733722291622,-1614.62,9.863e-05,2]
[344689088,1733722291666,-2524.62,9.863e-05,2]
[344689089,1733722291711,-552.03,9.863e-05,2]
[344689090,1733722291752,-1068.27,9.863e-05,2]
[344689091,1733722291793,-986.32,9.863e-05,2]
[344689092,1733722291835,-419.55163322,9.863e-05,2]
[344689093,1733722291876,-500.0,9.863e-05,2]
[344689094,1733722291919,-550.85,9.863e-05,2]
[344689095,1733722291965,-1614.62,9.863e-05,2]
[344689096,1733722292007,-2524.62,9.863e-05,2]
[344689097,1733722292050,-1068.27,9.863e-05,2]
[344689098,1733722292089,-552.03,9.863e-05,2]
[344689099,1733722292128,-500.36416115,9.863e-05,2]
[344689100,1733722292170,-550.85,9.863e-05,2]
[344689101,1733722292213,-1068.27,9.863e-05,2]
[344689102,1733722292253,-2524.62,9.863e-05,2]
[344689103,1733722292292,-552.03,9.863e-05,2]
[344689104,1733722292331,-879.40795503,9.863e-05,2]
[344689105,1733722310049,-300.0,9.762e-05,2]
[344689106,1733722310059,-19.19165597,9.763e-05,2]
[344689107,1733722310282,-1503.22425527,9.763e-05,2]
[344689108,1733722310338,-3477.58408876,9.763e-05,2]
[344689109,1733722310348,-1000.0,9.763e-05,2]
[344689110,1733722310358,-7510.01591124,9.763e-05,2]
[344689111,1733722351365,-33427.96409994,9.763e-05,2]
[344689112,1733722351896,-999.65166143,9.763e-05,2]
[344689113,1733722352363,-737.6,9.196e-05,2]
[344689114,1733722352373,-10720.7971403,9.763e-05,2]
[344689115,1733722352384,-9197.67373203,9.763e-05,2]
[344689116,1733722352395,-411.72265099,9.763e-05,2]
[344689117,1733722352406,-2573.82166047,9.763e-05,2]
[344689118,1733722352431,-25799.87572153,9.763e-05,2]
[344689119,1733722353153,-4975.52936314,9.763e-05,2]
[344689120,1733722353166,-1284.8648425,9.763e-05,2]
[344689122,1733722504219,160.0,9.763e-05,30]
[344689123,1733722803920,160.0,9.763e-05,30]
[344689128,1733723403257,420.0,6.201e-05,2]
[344689137,1733723432418,-994.99,8.219e-05,2]
[344689138,1733723432474,-1331.66,8.219e-05,2]
[344689139,1733723432484,-250.0,8.61e-05,2]
[344689140,1733723432494,-250.0,8.61e-05,2]
[344689141,1733723432504,-1000.0,8.697e-05,2]
[344689142,1733723432513,-23900.0,8.769e-05,2]
[344689143,1733723432522,-213.91,8.8e-05,2]
[344689144,1733723432531,-409.92,8.822e-05,2]
[344689145,1733723432541,-166.5,8.867e-05,2]
[344689146,1733723432550,-871.3,8.941e-05,2]
[344689147,1733723432560,-768.36,9.041e-05,2]
[344689148,1733723432569,-435.74,9.041e-05,2]
[344689149,1733723432579,-435.74,9.041e-05,2]
[344689150,1733723432587,-300.0,9.078e-05,2]
[344689151,1733723432597,-870.68,9.078e-05,2]
[344689152,1733723432606,-150.0,9.078e-05,2]
[344689153,1733723432615,-150.0,9.078e-05,2]
[344689154,1733723432624,-150.0,9.078e-05,2]
[344689155,1733723432633,-150.0,9.14e-05,2]
[344689156,1733723432643,-398.6,9.14e-05,2]
[344689157,1733723432652,-1537.02,9.14e-05,2]
[344689158,1733723432661,-150.0,9.14e-05,2]
[344689159,1733723432670,-150.0,9.14e-05,2]
[344689160,1733723432680,-150.0,9.178e-05,2]
[344689161,1733723432689,-300.26,9.178e-05,2]
[344689162,1733723432699,-592.83,9.178e-05,2]
[344689163,1733723432708,-435.34,9.178e-05,2]
[344689164,1733723432718,-150.0,9.178e-05,2]
[344689165,1733723432727,-423.7,9.178e-05,2]
[344689167,1733723432741,-435.34,9.178e-05,2]
[344689169,1733723432754,-300.0,9.178e-05,2]
[344689171,1733723432764,-168.96,9.269e-05,2]
[344689173,1733723432773,-230.15,9.352e-05,2]
[344689175,1733723432784,-150.0,9.37e-05,2]
[344689177,1733723432793,-371.416,9.37e-05,2]
[344689179,1733723432803,-150.0,9.396e-05,2]
[344689181,1733723432812,-728.5,9.397e-05,2]
[344689184,1733723432821,-364.25,9.397e-05,2]
[344689186,1733723432831,-364.25,9.397e-05,2]
[344689188,1733723432841,-364.25,9.397e-05,2]
[344689190,1733723432850,-376.4,9.397e-05,2]
[344689192,1733723432859,-300.0,9.397e-05,2]
[344689194,1733723432868,-150.0,9.467e-05,2]
[344689196,1733723432877,-150.0,9.467e-05,2]
[344689198,1733723432886,-5167.91255205,9.5e-05,2]
[344689200,1733723432895,-1313.58,9.7e-05,2]
[344689202,1733723432904,-264.5113,9.713e-05,2]
[344689204,1733723432913,-3253.579,9.763e-05,2]
[344689206,1733723432922,-166.717,9.763e-05,2]
[344689208,1733723432931,-3099.29071643,9.763e-05,2]
[344689210,1733723432940,-1000.0,9.763e-05,2]
[344689212,1733723432951,-5000.0,9.763e-05,2]
[344689214,1733723432960,-2500.0,9.763e-05,2]
[344689216,1733723432969,-173.33164658,9.763e-05,2]
[344689217,1733723432979,-36969.08743243,9.764e-05,2]
[344689220,1733723433017,-708.7217319,9.764e-05,2]
[344689221,1733723433028,-6200.42879933,9.764e-05,2]
[344689229,1733723433156,-356.90564556,9.764e-05,2]
[344689230,1733723433168,-493.8,9.764e-05,2]
[344689231,1733723433179,-711.47500005,9.764e-05,2]
[344689232,1733723433191,-874.46424162,9.764e-05,2]
[344689233,1733723433204,-1198.4,9.764e-05,2]
[344689234,1733723433216,-929.64434,9.764e-05,2]
[344689235,1733723433228,-3093.51452699,9.764e-05,2]
[344689253,1733723440069,-8941.55828212,9.764e-05,2]
[344689254,1733723440079,-842.97062825,9.784e-05,2]
[344689255,1733723440114,-157.02937175,9.784e-05,2]
[344689256,1733723440123,-1002.0,9.8e-05,2]
[344689257,1733723440133,-300.0,9.813e-05,2]
[344689258,1733723440142,-300.0,9.813e-05,2]
[344689259,1733723440151,-300.0,9.813e-05,2]
[344689260,1733723440161,-300.0,9.813e-05,2]
[344689261,1733723440170,-244.66252228,9.813e-05,2]
[344689262,1733723440181,-55.33747772,9.813e-05,2]
[344689263,1733723440191,-300.0,9.813e-05,2]
[344689264,1733723440203,-129.28836211,9.813e-05,2]
[344689265,1733723440217,-170.71163789,9.813e-05,2]
[344689266,1733723440227,-300.0,9.813e-05,2]
[344689267,1733723440236,-300.0,9.813e-05,2]
[344689268,1733723440245,-300.0,9.813e-05,2]
[344689269,1733723440254,-300.0,9.813e-05,2]
[344689270,1733723440264,-300.0,9.813e-05,2]
[344689271,1733723440274,-300.0,9.813e-05,2]
[344689272,1733723440283,-300.0,9.813e-05,2]
[344689273,1733723440292,-305.0,9.813e-05,2]
[344689274,1733723440301,-305.0,9.813e-05,2]
[344689275,1733723440311,-192.42651065,9.813e-05,2]
[344689276,1733723440322,-112.57348935,9.813e-05,2]
[344689277,1733723440331,-305.0,9.813e-05,2]
[344689278,1733723440340,-82.18471205,9.813e-05,2]
[344689280,1733723443128,-222.81528795,9.813e-05,2]
[344689281,1733723443137,-305.0,9.813e-05,2]
[344689282,1733723443148,-30.93939205,9.813e-05,2]
[344689283,1733723443598,-274.06060795,9.813e-05,2]
[344689284,1733723443607,-305.0,9.813e-05,2]
[344689286,1733723443617,-305.0,9.813e-05,2]
[344689287,1733723443627,-305.0,9.813e-05,2]
[344689288,1733723443636,-305.0,9.813e-05,2]
[344689289,1733723443645,-305.0,9.813e-05,2]
[344689290,1733723443654,-305.0,9.813e-05,2]
[344689291,1733723443664,-305.0,9.813e-05,2]
[344689292,1733723443673,-300.0,9.813e-05,2]
[344689293,1733723443682,-300.0,9.813e-05,2]
[344689294,1733723443692,-300.0,9.813e-05,2]
[344689295,1733723443701,-300.0,9.813e-05,2]
[344689296,1733723443711,-300.0,9.813e-05,2]
[344689297,1733723443720,-300.0,9.813e-05,2]
[344689298,1733723443729,-300.0,9.813e-05,2]
[344689299,1733723443740,-114.95494169,9.813e-05,2]
[344689301,1733723446178,-185.04505831,9.813e-05,2]
[344689302,1733723446187,-300.0,9.813e-05,2]
[344689303,1733723446197,-300.0,9.813e-05,2]
[344689304,1733723446207,-300.0,9.813e-05,2]
[344689305,1733723446216,-300.0,9.813e-05,2]
[344689306,1733723446226,-300.0,9.813e-05,2]
[344689307,1733723446236,-300.0,9.813e-05,2]
[344689308,1733723446246,-305.0,9.813e-05,2]
[344689309,1733723446256,-305.0,9.813e-05,2]
[344689310,1733723446271,-305.0,9.813e-05,2]
[344689311,1733723446283,-284.59366882,9.813e-05,2]
[344689312,1733723446397,-20.40633118,9.813e-05,2]
[344689313,1733723446406,-138.05846012,9.813e-05,2]
[344689314,1733723446417,-166.94153988,9.813e-05,2]
[344689315,1733723446427,-305.0,9.813e-05,2]
[344689316,1733723446436,-16.78924529,9.813e-05,2]
[344689325,1733724608018,1352.0,0.000165,60]
[344689327,1733724635758,-470.79358869,8.219e-05,2]
[344689328,1733724635768,-2275.08,8.219e-05,2]
[344689329,1733724635777,-174.37,8.706e-05,2]
[344689330,1733724635787,-487.31192926,8.756e-05,2]
[344689331,1733724635796,-150.0,8.778e-05,2]
[344689332,1733724635806,-250.0,8.8e-05,2]
[344689333,1733724635815,-250.0,8.833e-05,2]
[344689334,1733724635824,-300.0,8.845e-05,2]
[344689335,1733724635834,-3386.62649298,8.846e-05,2]
[344689336,1733724635845,-20513.37350702,8.846e-05,2]
[344689337,1733724635854,-1000.0,8.852e-05,2]
[344689338,1733724635864,-672.06,8.856e-05,2]
[344689339,1733724635874,-885.85,9.244e-05,2]
[344689340,1733724635883,-990.72,9.274e-05,2]
[344689341,1733724635892,-375.811,9.37e-05,2]
[344689342,1733724635902,-300.0,9.5e-05,3]
[344689343,1733724635911,-700.0,9.6e-05,3]
[344689344,1733724635921,-1000.0,9.7e-05,3]
[344689345,1733724635930,-420.0,9.729e-05,2]
[344689346,1733724635940,-1000.0,9.736e-05,2]
[344689347,1733724635949,-150.0,9.761e-05,2]
[344689348,1733724635958,-1000.0,9.762e-05,2]
[344689349,1733724635968,-2500.0,9.762e-05,2]
[344689350,1733724635978,-2998.439,9.762e-05,2]
[344689351,1733724635988,-167.855,9.762e-05,2]
[344689352,1733724635998,-15138.89149298,9.763e-05,2]
[344689353,1733724636023,-388.76,9.763e-05,2]
[344689354,1733724636035,-1727.4936,9.763e-05,2]
[344689355,1733724636046,-964.380752,9.763e-05,2]
[344689356,1733724636065,-1209.10423545,9.763e-05,2]
[344689357,1733724636077,-1822.65523828,9.763e-05,2]
[344689359,1733724638237,-49500.00000001,9.763e-05,2]
[344689360,1733724638248,-443.81585153,9.763e-05,2]
[344689361,1733724638259,-1100.0,9.763e-05,2]
[344689362,1733724638270,-3246.27181784,9.763e-05,2]
[344689363,1733724638383,-22323.91042253,9.763e-05,2]
[344689364,1733724638394,-2135.92408938,9.763e-05,2]
[344689365,1733724638403,-1797.35919165,9.763e-05,2]
[344689366,1733724638414,-1631.0,9.763e-05,2]
[344689367,1733724638489,-1571.64080835,9.763e-05,2]
[344689368,1733724638499,-200.0,9.764e-05,2]
[344689369,1733724638508,-192.41256365,9.8e-05,2]
[344689370,1733724638518,-1400.0,9.8e-05,3]
[344689371,1733724638527,-601.0,9.836e-05,2]
[344689372,1733724638537,-14669.0,9.836e-05,2]
[344689373,1733724638546,-863.0,9.836e-05,2]
[344689374,1733724638556,-1719.0,9.836e-05,2]
[344689375,1733724638565,-159.91916326,9.843e-05,2]
[344689376,1733724638574,-435.72564607,9.843e-05,2]
[344689377,1733724638583,-150.0,9.849e-05,2]
[344689378,1733724638593,-215.0,9.856e-05,2]
[344689379,1733724638602,-215.0,9.856e-05,2]
[344689380,1733724638611,-215.0,9.856e-05,2]
[344689381,1733724638620,-215.0,9.856e-05,2]
[344689382,1733724638630,-215.0,9.856e-05,2]
[344689383,1733724638639,-215.0,9.856e-05,2]
[344689384,1733724638648,-215.0,9.856e-05,2]
[344689385,1733724638658,-215.0,9.856e-05,2]
[344689386,1733724638667,-215.0,9.856e-05,2]
[344689387,1733724638676,-215.0,9.856e-05,2]
[344689388,1733724638685,-215.0,9.856e-05,2]
[344689389,1733724638695,-215.0,9.856e-05,2]
[344689390,1733724638705,-215.0,9.856e-05,2]
[344689391,1733724638714,-242.0,9.856e-05,2]
[344689392,1733724638723,-242.0,9.856e-05,2]
[344689393,1733724638734,-242.0,9.856e-05,2]
[344689394,1733724638743,-242.0,9.856e-05,2]
[344689395,1733724638752,-242.0,9.856e-05,2]
[344689396,1733724638761,-242.0,9.856e-05,2]
[344689397,1733724638771,-242.0,9.856e-05,2]
[344689398,1733724638779,-242.0,9.856e-05,2]
[344689399,1733724638789,-242.0,9.856e-05,2]
[344689400,1733724638798,-242.0,9.856e-05,2]
[344689401,1733724638816,-242.0,9.856e-05,2]
[344689402,1733724638829,-242.0,9.856e-05,2]
[344689403,1733724638838,-242.0,9.856e-05,2]
[344689404,1733724638847,-215.0,9.856e-05,2]
[344689405,1733724638856,-215.0,9.856e-05,2]
[344689406,1733724638865,-215.0,9.856e-05,2]
[344689407,1733724638875,-215.0,9.856e-05,2]
[344689408,1733724638884,-215.0,9.856e-05,2]
[344689409,1733724638894,-215.0,9.856e-05,2]
[344689410,1733724638904,-215.0,9.856e-05,2]
[344689411,1733724638914,-215.0,9.856e-05,2]
[344689412,1733724638923,-215.0,9.856e-05,2]
[344689413,1733724638934,-215.0,9.856e-05,2]
[344689414,1733724638944,-215.0,9.856e-05,2]
[344689415,1733724638953,-215.0,9.856e-05,2]
[344689416,1733724638963,-215.0,9.856e-05,2]
[344689417,1733724638973,-215.0,9.856e-05,2]
[344689418,1733724638985,-242.0,9.856e-05,2]
[344689419,1733724638994,-242.0,9.856e-05,2]
[344689420,1733724639004,-242.0,9.856e-05,2]
[344689421,1733724639014,-242.0,9.856e-05,2]
[344689422,1733724639023,-242.0,9.856e-05,2]
[344689423,1733724639032,-242.0,9.856e-05,2]